bitfinex/quotes_BTCUSD_20250902
["timestamp","ask_amount","ask_price","bid_price","bid_amount"]
[1756843803913,0.00274936,111270.0,111260.0,0.17975912]
[1756843804131,0.00274936,111270.0,111260.0,0.33659912]
[1756843804321,0.00594936,111270.0,111260.0,0.57975912]
[1756843804535,0.61402035,111270.0,111250.0,0.17976108]
[1756843804750,0.00600873,111260.0,111250.0,0.33669528]
[1756843804961,0.00480873,111260.0,111250.0,0.33669528]
[1756843805149,0.6132805,111260.0,111240.0,0.403]
[1756843805346,0.00599898,111250.0,111240.0,0.18279144]
[1756843805524,0.00801898,111250.0,111240.0,0.17979144]
[1756843805725,0.18779426,111250.0,111240.0,0.33699144]
[1756843805951,0.18779426,111250.0,111230.0,0.17980636]
[1756843805952,0.17979144,111240.0,111230.0,0.1798076]
[1756843806148,0.61331023,111240.0,111220.0,0.18878737]
[1756843806378,0.61118664,111230.0,111210.0,0.25332646]
[1756843806497,0.00214,111220.0,111210.0,0.25332646]
[1756843806692,0.43512599,111240.0,111230.0,0.1798076]
[1756843806900,0.00199,111240.0,111230.0,0.3372876]
[1756843807126,0.34,111250.0,111240.0,0.17979144]
[1756843807332,0.002,111250.0,111240.0,0.181397]
[1756843807526,0.00029101,111270.0,111260.0,0.17975912]
[1756843807735,0.52572503,111270.0,111260.0,0.17975912]
[1756843807964,0.00046835,111260.0,111250.0,0.33729528]
[1756843808294,0.00260835,111260.0,111250.0,0.33429528]
[1756843808498,0.00565835,111260.0,111250.0,0.33429528]
[1756843808659,0.4311779,111260.0,111250.0,0.33441528]
[1756843808832,0.61093702,111260.0,111240.0,0.18878101]
[1756843809033,0.61093702,111260.0,111230.0,0.17980476]
[1756843809034,0.61115381,111250.0,111230.0,0.17980476]
[1756843809235,0.18498144,111240.0,111220.0,0.34640068]
[1756843809448,0.66780258,111230.0,111220.0,0.33750377]
[1756843809664,0.66697309,111230.0,111220.0,0.33750377]
[1756843810288,0.84678069,111230.0,111220.0,0.17982377]
[1756843810490,0.84678069,111230.0,111220.0,0.33754377]
[1756843810491,0.66697309,111230.0,111220.0,0.33754377]
[1756843810699,0.84678069,111230.0,111220.0,0.33754377]
[1756843811033,0.84778069,111230.0,111220.0,0.33754377]
[1756843811227,0.00298,111230.0,111220.0,0.33754377]
[1756843811429,0.00578949,111230.0,111220.0,0.33754377]
[1756843811866,0.001,111230.0,111220.0,0.34259377]
[1756843812281,0.002,111230.0,111220.0,0.34259377]
[1756843812484,0.00398,111230.0,111220.0,0.33958377]
[1756843812687,0.001,111230.0,111220.0,0.34259377]
[1756843812896,0.00198,111230.0,111220.0,0.33754377]
[1756843813100,1.18155925,111250.0,111230.0,0.1798076]
[1756843813302,0.43191599,111250.0,111240.0,0.17979144]
[1756843813503,0.09389599,111250.0,111240.0,0.33759144]
[1756843814141,0.09389599,111250.0,111240.0,0.17979144]
[1756843814322,0.09589599,111250.0,111240.0,0.17979144]
[1756843814754,0.09389599,111250.0,111240.0,0.17979144]
[1756843815072,0.27367127,111250.0,111240.0,0.17979144]
[1756843815271,0.93866436,111250.0,111240.0,0.17979144]
[1756843815483,0.94066436,111250.0,111230.0,0.1798076]
[1756843815686,0.66459233,111240.0,111220.0,0.74665495]
[1756843815890,1.09452436,111250.0,111230.0,0.1798076]
[1756843816093,0.00478924,111240.0,111230.0,0.1798076]
[1756843816338,0.18458068,111240.0,111230.0,0.1798076]
[1756843816538,0.27689743,111240.0,111230.0,0.1798076]
[1756843816735,0.93868052,111240.0,111220.0,0.34665495]
[1756843817142,0.66178309,111230.0,111200.0,0.32875093]
[1756843817390,0.66178309,111210.0,111200.0,0.33773611]
[1756843817566,0.00198,111210.0,111200.0,0.17985611]
[1756843817956,1.13091347,111230.0,111210.0,0.17983011]
[1756843818173,0.00478974,111220.0,111210.0,0.33799011]
[1756843818386,0.09670573,111220.0,111210.0,0.33799011]
[1756843818553,0.00478974,111220.0,111210.0,0.33799011]
[1756843818781,0.00478974,111220.0,111210.0,0.34003011]
[1756843819315,0.00678974,111220.0,111210.0,0.34003011]
[1756843819511,0.00678974,111220.0,111210.0,0.17983011]
[1756843819719,0.94152259,111220.0,111200.0,0.17985339]
[1756843819930,0.66178309,111210.0,111200.0,0.33793339]
[1756843820130,0.66376309,111210.0,111200.0,0.33793339]
[1756843820299,0.84360303,111210.0,111200.0,0.33793339]
[1756843820492,0.84360303,111210.0,111200.0,0.17985339]
[1756843820700,0.84681303,111210.0,111200.0,0.15808]
[1756843820898,0.84681303,111210.0,111200.0,0.15804]
[1756843821103,0.18502994,111210.0,111200.0,0.33889611]
[1756843821300,0.84681303,111210.0,111200.0,0.001]
[1756843821506,0.93872902,111210.0,111200.0,0.001]
[1756843822569,0.93972902,111210.0,111190.0,0.34676296]
[1756843822755,0.00281025,111200.0,111190.0,0.34676296]
[1756843822981,0.18464636,111200.0,111190.0,0.34676296]
[1756843823182,0.18183611,111200.0,111190.0,0.34676296]
[1756843823383,0.8436192,111200.0,111190.0,0.18876296]
[1756843823590,0.8468292,111200.0,111190.0,0.17987229]
[1756843823793,0.18183611,111200.0,111190.0,0.17987229]
[1756843824007,0.43966792,111210.0,111190.0,0.18492229]
[1756843824218,0.80060674,111210.0,111200.0,0.17985611]
[1756843824433,0.80258674,111210.0,111190.0,0.17987229]
[1756843824643,0.80483674,111210.0,111200.0,0.17985611]
[1756843824846,1.46661983,111210.0,111190.0,0.17987229]
[1756843825095,1.46861983,111210.0,111190.0,0.17987229]
[1756843825513,1.46661983,111210.0,111190.0,0.17987229]
[1756843825715,1.30544983,111210.0,111200.0,0.17985611]
[1756843825916,0.80354674,111210.0,111200.0,0.17985611]
[1756843826119,0.80354674,111210.0,111190.0,0.17987229]
[1756843826326,0.00281025,111200.0,111190.0,0.17987229]
[1756843826530,0.00281025,111200.0,111190.0,0.18191229]
[1756843826963,0.0300407,111210.0,111200.0,0.17985611]
[1756843827164,0.003,111210.0,111200.0,0.34431387]
[1756843827305,0.002,111210.0,111200.0,0.34270611]
[1756843827720,0.002,111210.0,111200.0,0.34274611]
[1756843828023,0.00280974,111220.0,111210.0,0.17983994]
[1756843828245,0.36093882,111230.0,111220.0,0.17982377]
[1756843828512,0.5198076,111230.0,111220.0,0.18487377]
[1756843828682,0.34,111230.0,111220.0,0.18487377]
[1756843828887,0.5217876,111230.0,111220.0,0.17982377]
[1756843829093,0.5217876,111230.0,111220.0,0.33766377]
[1756843829251,0.34198,111230.0,111220.0,0.33766377]
[1756843829458,0.5217876,111230.0,111220.0,0.18186377]
[1756843829673,1.27869668,111230.0,111210.0,0.33767994]
[1756843829872,1.27869668,111230.0,111210.0,0.33867994]
[1756843829873,0.00280974,111220.0,111210.0,0.33867994]
[1756843830048,0.00280974,111220.0,111210.0,0.34372994]
[1756843830628,0.00478974,111220.0,111210.0,0.34083994]
[1756843831168,0.00478974,111220.0,111210.0,0.33983994]
[1756843831381,0.00280974,111220.0,111210.0,0.34284994]
[1756843831595,0.00280974,111220.0,111210.0,0.18488994]
[1756843831798,0.00280974,111220.0,111210.0,0.34288994]
[1756843832383,0.00280974,111220.0,111210.0,0.33779994]
[1756843832384,0.00478974,111220.0,111210.0,0.33779994]
[1756843832609,0.00478974,111220.0,111210.0,0.17983994]
[1756843833025,0.00478974,111220.0,111210.0,0.18083994]
[1756843833424,0.18461351,111220.0,111210.0,0.18083994]
[1756843833598,0.00198,111220.0,111210.0,0.18287994]
[1756843833807,0.00478974,111220.0,111210.0,0.18187994]
[1756843834020,0.00280974,111220.0,111210.0,0.34280994]
[1756843834612,0.00380974,111220.0,111210.0,0.34280994]
[1756843835012,0.00280974,111220.0,111210.0,0.34280994]
[1756843836450,0.18363351,111220.0,111210.0,0.18488994]
[1756843836652,0.18561351,111220.0,111210.0,0.18588994]
[1756843836859,0.18280377,111220.0,111210.0,0.33863994]
[1756843837255,0.18280377,111220.0,111210.0,0.33871994]
[1756843837496,0.18280377,111220.0,111210.0,0.34075994]
[1756843837497,0.00298,111220.0,111210.0,0.34075994]
[1756843837706,0.18561351,111220.0,111210.0,0.33871994]
[1756843837904,0.18180377,111220.0,111210.0,0.33871994]
[1756843838029,0.18461351,111220.0,111210.0,0.001]
[1756843838243,0.34241351,111220.0,111210.0,0.001]
[1756843838506,0.17983994,111210.0,111200.0,0.17985517]
[1756843838712,0.66382309,111210.0,111200.0,0.33977517]
[1756843838955,0.00204,111210.0,111200.0,0.33977517]
[1756843839145,0.18187994,111210.0,111200.0,0.33977517]
[1756843839762,0.18187994,111210.0,111200.0,0.17985517]
[1756843839914,0.84366303,111210.0,111200.0,0.1578]
[1756843840473,1.09333902,111210.0,111200.0,0.17985611]
[1756843840783,0.93557902,111210.0,111200.0,0.17985611]
[1756843840961,0.93657902,111210.0,111200.0,0.17985611]
[1756843841166,0.27479593,111210.0,111200.0,0.17985611]
[1756843841395,0.17985611,111200.0,111190.0,0.1888659]
[1756843841608,0.18470636,111200.0,111190.0,0.00212]
[1756843841769,0.33961611,111200.0,111190.0,0.17987229]
[1756843842199,0.33961611,111200.0,111190.0,0.18199229]
[1756843842398,0.93353902,111210.0,111190.0,0.18514229]
[1756843842569,1.43125902,111210.0,111190.0,0.18514229]
[1756843842770,1.45219784,111210.0,111200.0,0.17985611]
[1756843842970,1.45423784,111210.0,111200.0,0.18197611]
[1756843843188,1.45423784,111210.0,111200.0,0.17985611]
[1756843843406,1.45423784,111210.0,111190.0,0.18302229]
[1756843843814,0.17985611,111200.0,111190.0,0.17987229]
[1756843844016,0.18189611,111200.0,111190.0,0.18199229]
[1756843844651,0.18189611,111200.0,111180.0,0.42317349]
[1756843844851,0.0028105,111190.0,111180.0,0.42331394]
[1756843845055,0.18472279,111190.0,111180.0,0.19424763]
[1756843845262,0.18472279,111190.0,111180.0,0.33974321]
[1756843846085,0.18472279,111190.0,111180.0,0.00314045]
[1756843846288,0.33951229,111190.0,111180.0,0.00314045]
[1756843846492,0.33951229,111190.0,111180.0,0.00014045]
[1756843846893,0.33951229,111190.0,111180.0,0.00114045]
[1756843847301,0.43142828,111190.0,111180.0,0.00114045]
[1756843847507,0.43142828,111190.0,111180.0,0.18202891]
[1756843847719,0.09395599,111190.0,111180.0,0.18202891]
[1756843847920,0.09395599,111190.0,111180.0,0.18214891]
[1756843847921,0.43291878,111190.0,111180.0,0.18214891]
[1756843848129,0.43214828,111190.0,111180.0,0.18214891]
[1756843848480,0.43314828,111190.0,111180.0,0.18214891]
[1756843849368,0.43314828,111190.0,111180.0,0.18002891]
[1756843850560,0.27482828,111190.0,111180.0,0.18002891]
[1756843850775,0.25315599,111190.0,111180.0,0.18214891]
[1756843851357,0.25315599,111190.0,111180.0,0.18529891]
[1756843852154,0.25111599,111190.0,111180.0,0.18529891]
[1756843852358,0.25299599,111190.0,111180.0,0.18529891]
[1756843853647,0.43286828,111190.0,111180.0,0.00541045]
[1756843853919,0.43580828,111190.0,111180.0,0.00014045]
[1756843854124,0.43580828,111190.0,111180.0,0.18002891]
[1756843854272,0.43286828,111190.0,111180.0,0.18002891]
[1756843855132,0.25299599,111190.0,111180.0,0.18002891]
[1756843855338,0.09291599,111190.0,111180.0,0.18214891]
[1756843855542,0.001,111190.0,111180.0,0.18529891]
[1756843856865,0.34,111200.0,111190.0,0.17987229]
[1756843857005,0.34,111200.0,111190.0,0.34298229]
[1756843858037,0.02704163,111210.0,111200.0,0.17985611]
[1756843858254,0.50060974,111220.0,111210.0,0.17982636]
[1756843858457,0.34,111220.0,111210.0,0.18509636]
[1756843858664,0.34,111220.0,111210.0,0.34285636]
[1756843859239,0.15796,111230.0,111220.0,0.17982377]
[1756843859464,0.59472548,111230.0,111220.0,0.18194377]
[1756843859638,0.59191599,111230.0,111220.0,0.18194377]
[1756843859843,0.59191599,111230.0,111210.0,0.17982636]
[1756843859844,0.77466359,111230.0,111210.0,0.17982636]
[1756843860040,0.00280974,111220.0,111210.0,0.17982636]
[1756843860316,0.00480974,111220.0,111210.0,0.18609636]
[1756843860614,0.002,111220.0,111210.0,0.84787945]
[1756843860949,0.002,111220.0,111210.0,0.18609636]
[1756843861166,0.34,111240.0,111230.0,0.1798076]
[1756843861435,0.34,111240.0,111230.0,0.1819276]
[1756843861436,0.43442405,111240.0,111230.0,0.1819276]
[1756843861655,0.43238405,111240.0,111230.0,0.1850776]
[1756843861804,0.61217549,111240.0,111230.0,0.1850776]
[1756843862009,0.61421549,111240.0,111230.0,0.00212]
[1756843862211,0.43442405,111240.0,111230.0,0.1819276]
[1756843862918,0.43542405,111240.0,111230.0,0.1819276]
[1756843863103,0.43442405,111240.0,111230.0,0.1819276]
[1756843863305,0.00246806,111240.0,111230.0,1.00490069]
[1756843863707,0.00046806,111240.0,111230.0,1.00490069]
[1756843864145,0.00146806,111240.0,111230.0,0.3431176]
[1756843864385,0.00146806,111240.0,111230.0,0.1850776]
[1756843864523,0.00146806,111240.0,111230.0,0.3430376]
[1756843864727,0.00046806,111240.0,111230.0,0.3430376]
[1756843865293,0.00046806,111240.0,111230.0,0.3460376]
[1756843865497,0.00046806,111240.0,111230.0,0.1880776]
[1756843865701,0.00046806,111240.0,111230.0,0.3458776]
[1756843866068,0.00046806,111240.0,111230.0,0.3468776]
[1756843870467,0.00046806,111240.0,111230.0,0.77180553]
[1756843870672,0.00046806,111240.0,111230.0,0.3468776]
[1756843872357,0.00046806,111240.0,111230.0,0.1890776]
[1756843872558,0.00241806,111240.0,111230.0,0.3467576]
[1756843872774,0.00046806,111240.0,111230.0,0.3467576]
[1756843873456,0.00046806,111240.0,111230.0,0.3457576]
[1756843873685,0.00046806,111240.0,111230.0,0.3456376]
[1756843874260,0.00046806,111240.0,111230.0,0.1880776]
[1756843874462,0.00046806,111240.0,111230.0,0.3456376]
[1756843874687,0.00046806,111240.0,111230.0,0.3426376]
[1756843874893,0.00046806,111240.0,111230.0,0.1850776]
[1756843875098,0.00241806,111240.0,111230.0,0.3404076]
[1756843875272,0.00046806,111240.0,111230.0,0.1858676]
[1756843875490,0.00046806,111240.0,111230.0,0.3433076]
[1756843875694,0.42734599,111240.0,111230.0,0.3382476]
[1756843876553,0.42734599,111240.0,111230.0,0.1808076]
[1756843876554,0.70221342,111240.0,111230.0,0.1808076]
[1756843876765,0.72315224,111240.0,111230.0,0.001]
[1756843876974,0.88055224,111240.0,111230.0,0.001]
[1756843877177,0.88155224,111240.0,111230.0,0.001]
[1756843877788,0.1798076,111230.0,111220.0,0.17980933]
[1756843877998,0.18456709,111230.0,111220.0,0.17980933]
[1756843878201,0.1817576,111230.0,111220.0,0.17980933]
[1756843878401,0.60668553,111230.0,111220.0,0.17980933]
[1756843878536,0.69860152,111230.0,111220.0,0.17982377]
[1756843878747,0.70176152,111230.0,111220.0,0.17982377]
[1756843878947,0.69860152,111230.0,111220.0,0.17982377]
[1756843879146,0.27367359,111230.0,111220.0,0.17982377]
[1756843879349,0.27467359,111230.0,111220.0,0.17982377]
[1756843879891,0.09291599,111230.0,111220.0,0.18472377]
[1756843880100,0.09572548,111230.0,111220.0,0.18472377]
[1756843881039,0.09767548,111230.0,111220.0,0.18472377]
[1756843881243,0.27748308,111230.0,111220.0,0.18472377]
[1756843881452,0.27467359,111230.0,111220.0,0.18472377]
[1756843882144,0.27467359,111230.0,111220.0,0.18178377]
[1756843882350,0.70276152,111230.0,111210.0,0.34605835]
[1756843882560,0.00280974,111220.0,111210.0,0.34605835]
[1756843882759,0.00280974,111220.0,111210.0,0.35095835]
[1756843885256,0.00280974,111220.0,111210.0,0.35195835]
[1756843885495,0.00280974,111220.0,111210.0,0.35183835]
[1756843886362,0.18458351,111220.0,111210.0,0.001]
[1756843886715,0.69861769,111220.0,111210.0,0.18083994]
[1756843886941,0.69861769,111220.0,111210.0,0.001]
[1756843887148,0.87975651,111220.0,111210.0,0.001]
[1756843887354,1.22860622,111220.0,111210.0,0.001]
[1756843887910,1.07156622,111220.0,111210.0,0.001]
[1756843888116,1.06645622,111220.0,111210.0,0.00196]
[1756843888280,0.61373976,111220.0,111210.0,0.18473994]
[1756843888484,0.61473976,111220.0,111210.0,0.18473994]
[1756843888703,0.61173976,111220.0,111210.0,0.18473994]
[1756843888961,0.62085658,111220.0,111210.0,0.18473994]
[1756843889131,0.61473976,111220.0,111210.0,0.18473994]
[1756843889326,0.61373976,111220.0,111210.0,0.18473994]
[1756843889536,0.61568976,111220.0,111210.0,0.18473994]
[1756843889692,0.17983994,111210.0,111200.0,0.18279547]
[1756843889896,0.00280999,111210.0,111200.0,0.18279547]
[1756843890139,0.00280999,111210.0,111200.0,0.18475547]
[1756843891151,0.77001976,111220.0,111210.0,0.17983994]
[1756843891356,0.77196976,111220.0,111210.0,0.00196]
[1756843891559,0.77096976,111220.0,111210.0,0.18179994]
[1756843891982,0.77096976,111220.0,111210.0,0.00196]
[1756843892194,0.77096976,111220.0,111200.0,0.18279547]
[1756843892625,1.19589769,111220.0,111200.0,0.18279547]
[1756843892826,0.00280999,111210.0,111200.0,0.18279547]
[1756843893076,1.19494769,111220.0,111210.0,0.17983994]
[1756843893275,1.19689769,111220.0,111200.0,0.18279547]
[1756843894053,0.77096976,111220.0,111210.0,0.18179994]
[1756843894274,0.77196976,111220.0,111210.0,0.17983994]
[1756843894677,0.77096976,111220.0,111200.0,0.18279547]
[1756843895298,0.77196976,111220.0,111200.0,0.18279547]
[1756843895538,0.43291599,111220.0,111210.0,0.18473994]
[1756843895784,0.68581334,111230.0,111220.0,0.17982377]
[1756843896001,0.77967933,111230.0,111220.0,0.17982377]
[1756843896489,0.77083359,111230.0,111210.0,0.33993994]
[1756843896778,0.18263351,111220.0,111210.0,0.33997994]
[1756843897230,0.18458351,111220.0,111210.0,0.34193994]
[1756843897477,1.20294241,111230.0,111210.0,0.34193994]
[1756843897694,0.00280974,111220.0,111210.0,0.34193994]
[1756843898376,0.00280974,111220.0,111210.0,0.34293994]
[1756843899127,0.18263351,111220.0,111210.0,0.34293994]
[1756843899749,0.00280974,111220.0,111210.0,0.34293994]
[1756843900920,0.58895599,111230.0,111220.0,0.17982377]
[1756843901142,0.58895599,111230.0,111220.0,0.18505377]
[1756843901378,0.76876359,111230.0,111220.0,0.18505377]
[1756843901735,0.58895599,111230.0,111220.0,0.18505377]
[1756843901929,0.58995599,111230.0,111220.0,0.18505377]
[1756843902181,0.76980359,111230.0,111220.0,0.18505377]
[1756843902384,0.77187359,111230.0,111220.0,0.00523]
[1756843902590,0.17982377,111220.0,111210.0,0.34005994]
[1756843902834,0.18263351,111220.0,111210.0,0.18305994]
[1756843902975,0.18263351,111220.0,111210.0,0.34206994]
[1756843903185,0.18470351,111220.0,111210.0,0.34206994]
[1756843903392,0.00207,111220.0,111210.0,0.34206994]
[1756843903595,0.00487974,111220.0,111210.0,0.34206994]
[1756843903967,0.00280974,111220.0,111210.0,0.34306994]
[1756843904182,0.00487974,111220.0,111210.0,0.34306994]
[1756843904403,0.18263351,111220.0,111210.0,0.34306994]
[1756843904964,0.00280974,111220.0,111210.0,0.34206994]
[1756843905148,0.00380974,111220.0,111210.0,0.34206994]
[1756843905892,0.001,111220.0,111210.0,0.76699787]
[1756843906350,0.001,111220.0,111210.0,0.34206994]
[1756843906835,0.34,111230.0,111220.0,0.17982377]
[1756843907081,0.34,111230.0,111220.0,0.18505377]
[1756843907565,0.5218776,111230.0,111220.0,0.18505377]
[1756843907785,0.5218776,111230.0,111220.0,0.18183377]
[1756843908193,0.5228776,111230.0,111220.0,0.18183377]
[1756843908686,0.95091553,111230.0,111210.0,0.18305994]
[1756843908904,0.5228776,111230.0,111220.0,0.17982377]
[1756843909127,0.94780553,111230.0,111220.0,0.17982377]
[1756843909377,0.94780553,111230.0,111210.0,0.18305994]
[1756843909602,0.18263351,111220.0,111210.0,0.34029994]
[1756843909833,0.00487974,111220.0,111210.0,0.34230994]
[1756843910046,0.00280974,111220.0,111210.0,0.34230994]
[1756843910937,0.00280974,111220.0,111210.0,0.34330994]
[1756843911154,0.00280974,111220.0,111210.0,0.18606994]
[1756843911372,0.18263351,111220.0,111210.0,0.34318994]
[1756843911609,0.18470351,111220.0,111210.0,0.34318994]
[1756843911830,0.18189377,111220.0,111210.0,0.34318994]
[1756843912321,0.18189377,111220.0,111210.0,0.18606994]
[1756843912534,0.18189377,111220.0,111210.0,0.34314994]
[1756843913484,0.18289377,111220.0,111210.0,0.34214994]
[1756843913731,0.59104905,111220.0,111210.0,0.18506994]
[1756843913987,1.15935433,111220.0,111210.0,0.17983994]
[1756843914234,0.18289377,111220.0,111210.0,0.18184994]
[1756843914481,0.59104905,111220.0,111210.0,0.17983994]
[1756843915015,0.56619528,111220.0,111210.0,0.18506994]
[1756843915175,0.74601905,111220.0,111210.0,0.18506994]
[1756843915398,0.15804,111220.0,111210.0,0.18506994]
[1756843915808,0.56900502,111220.0,111210.0,0.18506994]
[1756843915988,0.74601905,111220.0,111210.0,0.18506994]
[1756843917029,0.58897905,111220.0,111210.0,0.18506994]
[1756843917153,0.74601905,111220.0,111210.0,0.18506994]
[1756843917353,0.33786377,111220.0,111210.0,0.18506994]
[1756843917571,0.74601905,111220.0,111210.0,0.18506994]
[1756843918142,0.74808905,111220.0,111210.0,0.18506994]
[1756843919259,0.18082377,111220.0,111210.0,0.18506994]
[1756843919477,0.56880502,111220.0,111210.0,0.18506994]
[1756843919694,0.74581905,111220.0,111210.0,0.18506994]
[1756843920468,0.001,111220.0,111210.0,0.18506994]
[1756843920660,0.001,111220.0,111210.0,0.59322522]
[1756843921513,0.56534334,111240.0,111230.0,0.1798076]
[1756843921718,0.74720478,111240.0,111230.0,0.3385376]
[1756843921938,0.00046806,111240.0,111230.0,0.74991288]
[1756843922391,0.00046806,111240.0,111230.0,0.3417576]
[1756843923559,0.00146806,111240.0,111230.0,0.74991288]
[1756843923997,0.00146806,111240.0,111230.0,0.43367359]
[1756843924232,0.00046806,111240.0,111230.0,1.24998415]
[1756843924481,0.00046806,111240.0,111230.0,0.88260143]
[1756843924694,0.00146806,111240.0,111230.0,1.29075671]
[1756843924906,0.00146806,111240.0,111230.0,0.88260143]
[1756843925227,0.00146806,111240.0,111230.0,0.47436615]
[1756843925453,0.00146806,111240.0,111230.0,0.88252143]
[1756843925680,0.00146806,111240.0,111230.0,1.28252143]
[1756843925921,0.00046806,111240.0,111230.0,0.87536615]
[1756843926144,0.00046806,111240.0,111230.0,1.28352143]
[1756843926612,0.00046806,111240.0,111230.0,1.28652143]
[1756843927263,0.00046806,111240.0,111230.0,1.12988143]
[1756843927459,0.00046806,111240.0,111230.0,1.28652143]
[1756843927722,0.00046806,111240.0,111230.0,1.71742671]
[1756843927917,0.00046806,111240.0,111230.0,2.05742671]
[1756843928188,0.00046806,111240.0,111230.0,1.90078671]
[1756843928651,0.00046806,111240.0,111230.0,1.62652143]
[1756843930422,0.00046806,111240.0,111230.0,1.22652143]
[1756843930771,0.00046806,111240.0,111230.0,1.62652143]
[1756843930980,0.00046806,111240.0,111230.0,1.28652143]
[1756843931235,0.00046806,111240.0,111230.0,1.31354526]
[1756843931481,0.00046806,111240.0,111230.0,0.90538998]
[1756843931629,0.00046806,111240.0,111230.0,1.31329235]
[1756843931975,0.00046806,111240.0,111230.0,1.15665235]
[1756843932186,0.00046806,111240.0,111230.0,1.31329235]
[1756843932736,0.00046806,111240.0,111230.0,1.27251979]
[1756843933767,0.00046806,111240.0,111230.0,0.87251979]
[1756843934243,0.00046806,111240.0,111230.0,1.27251979]
[1756843935225,0.00046806,111240.0,111230.0,1.11587979]
[1756843935432,0.00046806,111240.0,111230.0,0.68095359]
[1756843935628,0.00046806,111240.0,111230.0,0.83759359]
[1756843935629,0.00246806,111240.0,111230.0,0.83759359]
[1756843935803,0.00246806,111240.0,111230.0,0.7456776]
[1756843936221,0.00246806,111240.0,111230.0,0.3456376]
[1756843936932,0.00246806,111240.0,111230.0,0.1838076]
[1756843937174,0.59016187,111240.0,111230.0,0.1838076]
[1756843937366,0.41350043,111240.0,111230.0,0.3404076]
[1756843937574,0.59016187,111240.0,111230.0,0.3404076]
[1756843937775,0.00246806,111240.0,111230.0,0.3374076]
[1756843937980,0.0052773,111240.0,111230.0,0.3364076]
[1756843938652,0.0052773,111240.0,111230.0,0.3383876]
[1756843938859,0.0052773,111240.0,111230.0,0.3415276]
[1756843938999,0.0032773,111240.0,111230.0,0.3415276]
[1756843939212,0.00046806,111240.0,111230.0,0.3415276]
[1756843939418,0.00046806,111240.0,111230.0,0.3425276]
[1756843939842,0.00046806,111240.0,111230.0,0.3415276]
[1756843940096,0.00046806,111240.0,111230.0,0.3425276]
[1756843940314,0.0052773,111240.0,111230.0,0.3374076]
[1756843940909,0.0052773,111240.0,111230.0,0.3393876]
[1756843941151,0.18506874,111240.0,111230.0,0.3374076]
[1756843941354,0.59329187,111240.0,111230.0,0.3374076]
[1756843941782,0.59329187,111240.0,111230.0,0.1576]
[1756843942424,0.59429187,111240.0,111230.0,0.3374076]
[1756843942631,0.59429187,111240.0,111230.0,0.3415276]
[1756843942632,0.00146806,111240.0,111230.0,0.3415276]
[1756843942839,0.18606874,111240.0,111230.0,0.3415276]
[1756843943055,0.1832595,111240.0,111230.0,0.3364076]
[1756843943802,0.1832595,111240.0,111230.0,0.1798076]
[1756843944008,0.59116187,111240.0,111230.0,0.1576]
[1756843944213,0.59116187,111240.0,111230.0,0.3393876]
[1756843944421,0.59016187,111240.0,111230.0,0.3393876]
[1756843944624,0.1822595,111240.0,111230.0,0.3393876]
[1756843945359,0.1832595,111240.0,111230.0,0.3393876]
[1756843945567,0.21029007,111240.0,111230.0,0.3393876]
[1756843946221,0.21029007,111240.0,111230.0,0.3383876]
[1756843946562,0.20529007,111240.0,111230.0,0.3415276]
[1756843946779,0.61319244,111240.0,111230.0,0.3415276]
[1756843946978,0.61515244,111240.0,111230.0,0.3415276]
[1756843947369,0.61319244,111240.0,111230.0,0.3415276]
[1756843947602,0.20725007,111240.0,111230.0,0.3415276]
[1756843947823,0.20725007,111240.0,111230.0,0.1849276]
[1756843948029,0.20529007,111240.0,111230.0,0.1849276]
[1756843948253,0.20782201,111240.0,111230.0,0.1849276]
[1756843948680,0.20978201,111240.0,111230.0,0.1849276]
[1756843948894,0.20782201,111240.0,111230.0,0.3383876]
[1756843949131,0.02803057,111240.0,111230.0,0.3415276]
[1756843950240,0.001,111240.0,111230.0,0.74942997]
[1756843950463,0.20961467,111250.0,111240.0,0.17979144]
[1756843950677,0.02716881,111250.0,111240.0,0.18491144]
[1756843951355,0.20694409,111250.0,111240.0,0.18491144]
[1756843951588,0.20990409,111250.0,111240.0,0.17979144]
[1756843952011,0.20794409,111250.0,111240.0,0.18491144]
[1756843952224,0.02816881,111250.0,111240.0,0.18491144]
[1756843952441,0.20794409,111250.0,111240.0,0.18491144]
[1756843952792,0.02816881,111250.0,111240.0,0.18491144]
[1756843954541,0.20794409,111250.0,111240.0,0.18491144]
[1756843954716,0.20990409,111250.0,111240.0,0.33663144]
[1756843955140,0.20990409,111250.0,111240.0,0.34175144]
[1756843956070,0.20990409,111250.0,111240.0,0.33663144]
[1756843956707,0.20990409,111250.0,111240.0,0.34175144]
[1756843956892,0.20990409,111250.0,111240.0,0.18491144]
[1756843957095,0.20990409,111250.0,111240.0,0.17979144]
[1756843957302,0.20990409,111250.0,111240.0,0.33659144]
[1756843957758,0.20990409,111250.0,111240.0,0.33973144]
[1756843957970,0.20990409,111250.0,111240.0,0.34171144]
[1756843958204,0.20794409,111250.0,111240.0,0.34171144]
[1756843958436,0.02816881,111250.0,111240.0,0.34171144]
[1756843959834,0.00114036,111250.0,111240.0,0.74961381]
[1756843960449,0.00014036,111250.0,111240.0,0.74961381]
[1756843962625,0.00014036,111250.0,111240.0,0.75061381]
[1756843962800,0.00014036,111250.0,111240.0,0.34251144]
[1756843964416,0.00014036,111250.0,111240.0,0.18591144]
[1756843964598,0.00014036,111250.0,111240.0,0.34251144]
[1756843967041,0.00014036,111250.0,111240.0,0.35170216]
[1756843967250,0.00014036,111250.0,111240.0,0.18591144]
[1756843969046,0.00014036,111250.0,111240.0,0.18595144]
[1756843970360,0.00014036,111250.0,111240.0,0.19497437]
[1756843971940,0.00014036,111250.0,111240.0,0.60287674]
[1756843972283,0.00014036,111250.0,111240.0,0.19497437]
[1756843973236,0.00014036,111250.0,111240.0,1.5060551]
[1756843973440,0.00014036,111250.0,111240.0,1.55688532]
[1756843974284,0.00014036,111250.0,111240.0,1.95688532]
[1756843974679,0.00029101,111270.0,111260.0,0.17975912]
[1756843974919,0.00029101,111270.0,111260.0,0.83778203]
[1756843975138,0.00029101,111270.0,111260.0,0.84113748]
[1756843975352,0.00029101,111270.0,111260.0,0.8681541]
[1756843976194,0.00329101,111270.0,111260.0,0.8681541]
[1756843976869,0.00229101,111270.0,111260.0,0.8681541]
[1756843977535,0.00029101,111270.0,111260.0,0.7115541]
[1756843978013,0.00029101,111270.0,111260.0,0.8701541]
[1756843978225,0.00029101,111270.0,111260.0,0.8741541]
[1756843978426,0.00029101,111270.0,111260.0,0.8701541]
[1756843978763,0.00029101,111270.0,111260.0,0.8711541]
[1756843978961,0.00029101,111270.0,111260.0,0.8721541]
[1756843979830,0.00029101,111270.0,111260.0,0.30765173]
[1756843980025,0.00029101,111270.0,111260.0,0.46421173]
[1756843980223,0.00029101,111270.0,111260.0,0.30765173]
[1756843980465,0.00225101,111270.0,111260.0,0.34031912]
[1756843980669,0.00225101,111270.0,111260.0,0.18575912]
[1756843980886,0.00225101,111270.0,111260.0,0.34031912]
[1756843981259,0.41015338,111270.0,111260.0,0.18375912]
[1756843981463,0.41015338,111270.0,111260.0,0.34031912]
[1756843981650,0.00225101,111270.0,111260.0,0.34031912]